[Event "December 19 Late 2023"]
[Site "https://www.chess.com"]
[Date "2023.12.19"]
[Round "7"]
[White "Durarbayli, Vasif"]
[Black "Drygalov, Sergey"]
[Result "0-1"]
[Board "12"]
[TimeControl "180+1"]
[WhiteFideId "13402935"]
[BlackFideId "24171743"]
[WhiteElo "2551"]
[BlackElo "2504"]
[WhiteTeam "AZE"]
[BlackTeam "RUS"]
[WhiteClock "0:00:05"]
[BlackClock "0:00:19"]

1. e4 {[%clk 0:03:00]}  c5 {[%clk 0:03:00]} 2. Nf3 {[%clk 0:03:00]}  d6 {[%clk 0:03:01]} 3. d4 {[%clk 0:03:00]}  cxd4 {[%clk 0:03:02]} 4. Nxd4 {[%clk 0:03:01]}  Nf6 {[%clk 0:03:02]} 5. Nc3 {[%clk 0:03:01]}  a6 {[%clk 0:03:03]} 6. Bg5 {[%clk 0:03:01]}  Nbd7 {[%clk 0:03:03]} 7. Qe2 {[%clk 0:03:00]}  h6 {[%clk 0:02:59]} 8. Bh4 {[%clk 0:03:00]}  g6 {[%clk 0:02:55]} 9. O-O-O {[%clk 0:02:56]}  Qc7 {[%clk 0:02:51]} 10. f4 {[%clk 0:02:51]}  e5 {[%clk 0:02:52]} 11. fxe5 {[%clk 0:02:18]}  dxe5 {[%clk 0:02:53]} 12. Nd5 {[%clk 0:02:18]}  Nxd5 {[%clk 0:02:50]} 13. exd5 {[%clk 0:02:19]}  Bd6 {[%clk 0:02:48]} 14. g4 {[%clk 0:02:06]}  O-O {[%clk 0:02:45]} 15. Nb3 {[%clk 0:01:54]}  b5 {[%clk 0:02:40]} 16. Bg3 {[%clk 0:01:51]}  Bb7 {[%clk 0:02:38]} 17. h4 {[%clk 0:01:51]}  Rfc8 {[%clk 0:02:22]} 18. h5 {[%clk 0:01:50]}  g5 {[%clk 0:02:22]} 19. Kb1 {[%clk 0:01:31]}  a5 {[%clk 0:02:20]} 20. Qe4 {[%clk 0:01:09]}  a4 {[%clk 0:02:14]} 21. Nc1 {[%clk 0:01:03]}  a3 {[%clk 0:02:12]} 22. Bd3 {[%clk 0:00:57]}  Nf6 {[%clk 0:02:04]} 23. Qf5 {[%clk 0:00:57]}  axb2 {[%clk 0:01:54]} 24. Nb3 {[%clk 0:00:44]}  Rxa2 {[%clk 0:01:48]} 25. Qxf6 {[%clk 0:00:25]}  Rca8 {[%clk 0:01:05]} 26. c3 {[%clk 0:00:12]}  Bxd5 {[%clk 0:00:38]} 27. Qxh6 {[%clk 0:00:09]}  Ra1+ {[%clk 0:00:23]} 28. Kc2 {[%clk 0:00:09]}  Bxb3+ {[%clk 0:00:19]} 29. Kd2 {[%clk 0:00:10]}  b1=N+ {[%clk 0:00:18]} 30. Rxb1 {[%clk 0:00:07]}  R8a2+ {[%clk 0:00:18]} 31. Ke3 {[%clk 0:00:05]}  Qc5+ {[%clk 0:00:18]} 32. Kf3 {[%clk 0:00:06]}  Bd5+ {[%clk 0:00:18]} 33. Be4 {[%clk 0:00:05]}  Qxc3# {[%clk 0:00:19]} 0-1

[Event "December 19 Late 2023"]
[Site "https://www.chess.com"]
[Date "2023.12.19"]
[Round "7"]
[White "Dardha, Daniel"]
[Black "Delorme, Axel"]
[Result "1-0"]
[Board "14"]
[TimeControl "180+1"]
[WhiteFideId "240990"]
[BlackFideId "632023"]
[WhiteElo "2568"]
[BlackElo "2478"]
[WhiteTeam "BEL"]
[BlackTeam "FRA"]
[WhiteClock "0:00:13"]
[BlackClock "0:00:05"]

1. d4 {[%clk 0:03:00]}  d5 {[%clk 0:02:58]} 2. c4 {[%clk 0:03:00]}  e6 {[%clk 0:02:58]} 3. Nf3 {[%clk 0:02:59]}  c6 {[%clk 0:02:58]} 4. Qd3 {[%clk 0:02:57]}  dxc4 {[%clk 0:02:56]} 5. Qxc4 {[%clk 0:02:58]}  b5 {[%clk 0:02:56]} 6. Qd3 {[%clk 0:02:56]}  Bb7 {[%clk 0:02:53]} 7. Nc3 {[%clk 0:02:54]}  Nd7 {[%clk 0:02:50]} 8. Bf4 {[%clk 0:02:48]}  Ngf6 {[%clk 0:02:46]} 9. g4 {[%clk 0:02:48]}  b4 {[%clk 0:02:40]} 10. Ne4 {[%clk 0:02:48]}  Nxe4 {[%clk 0:02:38]} 11. Qxe4 {[%clk 0:02:49]}  Nf6 {[%clk 0:02:38]} 12. Qc2 {[%clk 0:02:49]}  c5 {[%clk 0:02:29]} 13. e4 {[%clk 0:02:44]}  Qa5 {[%clk 0:02:22]} 14. Nd2 {[%clk 0:02:18]}  cxd4 {[%clk 0:02:10]} 15. Nb3 {[%clk 0:01:47]}  Qb6 {[%clk 0:01:52]} 16. f3 {[%clk 0:01:47]}  Rc8 {[%clk 0:01:47]} 17. Qd3 {[%clk 0:01:47]}  Nd7 {[%clk 0:01:31]} 18. Qb5 {[%clk 0:01:38]}  Qxb5 {[%clk 0:01:23]} 19. Bxb5 {[%clk 0:01:38]}  f6 {[%clk 0:01:15]} 20. e5 {[%clk 0:01:20]}  Bxf3 {[%clk 0:01:07]} 21. O-O {[%clk 0:01:17]}  Bd5 {[%clk 0:00:39]} 22. Rac1 {[%clk 0:01:07]}  Rxc1 {[%clk 0:00:20]} 23. Rxc1 {[%clk 0:01:08]}  Kd8 {[%clk 0:00:20]} 24. exf6 {[%clk 0:00:48]}  e5 {[%clk 0:00:14]} 25. fxg7 {[%clk 0:00:23]}  Bxg7 {[%clk 0:00:13]} 26. Bg5+ {[%clk 0:00:23]}  Bf6 {[%clk 0:00:11]} 27. Bd2 {[%clk 0:00:23]}  Rg8 {[%clk 0:00:11]} 28. h3 {[%clk 0:00:22]}  h5 {[%clk 0:00:11]} 29. Nc5 {[%clk 0:00:18]}  Nxc5 {[%clk 0:00:06]} 30. Rxc5 {[%clk 0:00:18]}  Bf3 {[%clk 0:00:04]} 31. Bxb4 {[%clk 0:00:13]}  hxg4 {[%clk 0:00:05]} 32. Ba5+ {[%clk 0:00:14]}  Ke7 {[%clk 0:00:04]} 33. Rc7+ {[%clk 0:00:14]}  Ke6 {[%clk 0:00:04]} 34. Bc4+ {[%clk 0:00:13]}  Bd5 {[%clk 0:00:05]} 35. Rc6+ {[%clk 0:00:14]}  Kf5 {[%clk 0:00:05]} 36. Bxd5 {[%clk 0:00:14]}  Rd8 {[%clk 0:00:05]} 37. Be6+ {[%clk 0:00:14]}  Kf4 {[%clk 0:00:05]} 38. Bd2+ {[%clk 0:00:13]}  Kg3 {[%clk 0:00:04]} 39. Bxg4 {[%clk 0:00:12]}  e4 {[%clk 0:00:04]} 40. Rxf6 {[%clk 0:00:12]}  e3 {[%clk 0:00:05]} 41. Be1# {[%clk 0:00:13]} 1-0

[Event "December 19 Late 2023"]
[Site "https://www.chess.com"]
[Date "2023.12.19"]
[Round "7"]
[White "Bryakin, Mikhail"]
[Black "Duda, Jan-Krzysztof"]
[Result "0-1"]
[Board "16"]
[TimeControl "180+1"]
[WhiteFideId "4165314"]
[BlackFideId "1170546"]
[WhiteElo "2495"]
[BlackElo "2775"]
[WhiteTeam "SRB"]
[BlackTeam "POL"]
[WhiteClock "0:00:00"]
[BlackClock "0:00:57"]

1. Nf3 {[%clk 0:03:00]}  g6 {[%clk 0:03:00]} 2. d4 {[%clk 0:02:59]}  Bg7 {[%clk 0:02:49]} 3. c4 {[%clk 0:03:00]}  d6 {[%clk 0:02:48]} 4. Nc3 {[%clk 0:02:57]}  c5 {[%clk 0:02:46]} 5. dxc5 {[%clk 0:02:55]}  Bxc3+ {[%clk 0:02:42]} 6. bxc3 {[%clk 0:02:55]}  dxc5 {[%clk 0:02:43]} 7. Qxd8+ {[%clk 0:02:53]}  Kxd8 {[%clk 0:02:44]} 8. h4 {[%clk 0:02:48]}  Nf6 {[%clk 0:02:40]} 9. Bg5 {[%clk 0:02:38]}  Be6 {[%clk 0:02:36]} 10. O-O-O+ {[%clk 0:02:31]}  Nbd7 {[%clk 0:02:36]} 11. Ne5 {[%clk 0:02:08]}  Ke8 {[%clk 0:02:30]} 12. Nxd7 {[%clk 0:02:03]}  Nxd7 {[%clk 0:02:31]} 13. e3 {[%clk 0:01:46]}  Nb6 {[%clk 0:02:27]} 14. h5 {[%clk 0:01:44]}  f6 {[%clk 0:02:19]} 15. Bf4 {[%clk 0:01:40]}  g5 {[%clk 0:02:19]} 16. Bc7 {[%clk 0:01:39]}  Nxc4 {[%clk 0:01:53]} 17. Bxc4 {[%clk 0:01:39]}  Bxc4 {[%clk 0:01:54]} 18. a3 {[%clk 0:01:40]}  Rc8 {[%clk 0:01:50]} 19. Bg3 {[%clk 0:01:37]}  h6 {[%clk 0:01:46]} 20. Kc2 {[%clk 0:01:24]}  Bb5 {[%clk 0:01:45]} 21. Kb3 {[%clk 0:01:19]}  Kf7 {[%clk 0:01:45]} 22. c4 {[%clk 0:01:17]}  Bc6 {[%clk 0:01:45]} 23. f3 {[%clk 0:01:16]}  g4 {[%clk 0:01:38]} 24. e4 {[%clk 0:01:05]}  Rcg8 {[%clk 0:01:37]} 25. Bf4 {[%clk 0:01:05]}  e5 {[%clk 0:01:35]} 26. Be3 {[%clk 0:00:32]}  gxf3 {[%clk 0:01:35]} 27. gxf3 {[%clk 0:00:33]}  Rg3 {[%clk 0:01:35]} 28. Bxc5 {[%clk 0:00:30]}  Rxf3+ {[%clk 0:01:34]} 29. Kb2 {[%clk 0:00:27]}  Rg8 {[%clk 0:01:29]} 30. Rh2 {[%clk 0:00:21]}  Rg4 {[%clk 0:01:26]} 31. Bxa7 {[%clk 0:00:20]}  Rxe4 {[%clk 0:01:26]} 32. Rg1 {[%clk 0:00:16]}  Rxc4 {[%clk 0:01:25]} 33. Rhg2 {[%clk 0:00:17]}  Bd5 {[%clk 0:01:17]} 34. Rg7+ {[%clk 0:00:14]}  Ke6 {[%clk 0:01:18]} 35. R7g6 {[%clk 0:00:12]}  Rcc3 {[%clk 0:01:03]} 36. Rxh6 {[%clk 0:00:09]}  Rxa3 {[%clk 0:01:02]} 37. Bb8 {[%clk 0:00:01]}  Ra2+ {[%clk 0:01:00]} 38. Kb1 {[%clk 0:00:00]}  Rff2 {[%clk 0:00:57]} 0-1

[Event "December 19 Late 2023"]
[Site "https://www.chess.com"]
[Date "2023.12.19"]
[Round "7"]
[White "Deac, Bogdan-Daniel"]
[Black "Adla, Diego"]
[Result "1-0"]
[Board "18"]
[TimeControl "180+1"]
[WhiteFideId "1226380"]
[BlackFideId "100072"]
[WhiteElo "2641"]
[BlackElo "2377"]
[WhiteTeam "ROU"]
[BlackTeam "ARG"]
[WhiteClock "0:00:05"]
[BlackClock "0:00:00"]

1. b3 {[%clk 0:03:00]}  e5 {[%clk 0:02:59]} 2. Bb2 {[%clk 0:03:01]}  d6 {[%clk 0:02:59]} 3. e3 {[%clk 0:03:02]}  Nf6 {[%clk 0:02:59]} 4. c4 {[%clk 0:03:00]}  g6 {[%clk 0:02:58]} 5. d4 {[%clk 0:02:59]}  Qe7 {[%clk 0:02:58]} 6. Nf3 {[%clk 0:02:56]}  e4 {[%clk 0:02:58]} 7. Nfd2 {[%clk 0:02:56]}  Bg7 {[%clk 0:02:59]} 8. d5 {[%clk 0:02:56]}  O-O {[%clk 0:02:52]} 9. Nc3 {[%clk 0:02:56]}  Re8 {[%clk 0:02:50]} 10. h3 {[%clk 0:02:53]}  a5 {[%clk 0:02:43]} 11. g4 {[%clk 0:02:50]}  Na6 {[%clk 0:02:42]} 12. Be2 {[%clk 0:02:33]}  Nc5 {[%clk 0:02:41]} 13. Qc2 {[%clk 0:02:32]}  h5 {[%clk 0:02:34]} 14. Rg1 {[%clk 0:02:12]}  hxg4 {[%clk 0:02:33]} 15. hxg4 {[%clk 0:02:13]}  Nh7 {[%clk 0:02:26]} 16. Nb5 {[%clk 0:02:05]}  Bxb2 {[%clk 0:02:21]} 17. Qxb2 {[%clk 0:02:04]}  Ng5 {[%clk 0:02:14]} 18. Rh1 {[%clk 0:02:00]}  f6 {[%clk 0:02:07]} 19. Qd4 {[%clk 0:01:48]}  Na6 {[%clk 0:01:19]} 20. O-O-O {[%clk 0:01:39]}  Bd7 {[%clk 0:01:19]} 21. Nc3 {[%clk 0:01:16]}  Nc5 {[%clk 0:01:19]} 22. Rh6 {[%clk 0:01:16]}  Kg7 {[%clk 0:01:18]} 23. Rdh1 {[%clk 0:01:15]}  Rh8 {[%clk 0:01:19]} 24. Rxh8 {[%clk 0:01:15]}  Rxh8 {[%clk 0:01:19]} 25. Rxh8 {[%clk 0:01:15]}  Kxh8 {[%clk 0:01:19]} 26. a3 {[%clk 0:01:16]}  Kg7 {[%clk 0:01:08]} 27. Kc2 {[%clk 0:01:06]}  Kf7 {[%clk 0:01:02]} 28. b4 {[%clk 0:00:56]}  axb4 {[%clk 0:01:01]} 29. axb4 {[%clk 0:00:56]}  Na4 {[%clk 0:00:59]} 30. Ncxe4 {[%clk 0:00:51]}  Nxe4 {[%clk 0:00:55]} 31. Nxe4 {[%clk 0:00:50]}  Nb6 {[%clk 0:00:36]} 32. Nc3 {[%clk 0:00:42]}  Qe5 {[%clk 0:00:33]} 33. Qxe5 {[%clk 0:00:29]}  fxe5 {[%clk 0:00:34]} 34. f4 {[%clk 0:00:29]}  Na4 {[%clk 0:00:21]} 35. Ne4 {[%clk 0:00:22]}  exf4 {[%clk 0:00:19]} 36. exf4 {[%clk 0:00:23]}  Nb6 {[%clk 0:00:19]} 37. Kc3 {[%clk 0:00:22]}  Nc8 {[%clk 0:00:19]} 38. c5 {[%clk 0:00:19]}  Ke7 {[%clk 0:00:17]} 39. Kd4 {[%clk 0:00:17]}  b6 {[%clk 0:00:16]} 40. cxd6+ {[%clk 0:00:11]}  Nxd6 {[%clk 0:00:16]} 41. Nd2 {[%clk 0:00:04]}  c6 {[%clk 0:00:11]} 42. dxc6 {[%clk 0:00:04]}  Bxc6 {[%clk 0:00:12]} 43. Bd3 {[%clk 0:00:04]}  Kf7 {[%clk 0:00:10]} 44. Nc4 {[%clk 0:00:03]}  Nc8 {[%clk 0:00:07]} 45. Ne5+ {[%clk 0:00:03]}  Kf6 {[%clk 0:00:06]} 46. Nxc6 {[%clk 0:00:04]}  g5 {[%clk 0:00:07]} 47. f5 {[%clk 0:00:03]}  Nd6 {[%clk 0:00:07]} 48. Ne5 {[%clk 0:00:04]}  Nc8 {[%clk 0:00:04]} 49. Nd7+ {[%clk 0:00:03]}  Ke7 {[%clk 0:00:04]} 50. Ne5 {[%clk 0:00:04]}  Kf6 {[%clk 0:00:04]} 51. Nc4 {[%clk 0:00:04]}  Ke7 {[%clk 0:00:03]} 52. Ne3 {[%clk 0:00:04]}  Kf6 {[%clk 0:00:03]} 53. Nd5+ {[%clk 0:00:04]}  Kf7 {[%clk 0:00:00]} 54. Ke5 {[%clk 0:00:05]} 1-0

[Event "December 19 Late 2023"]
[Site "https://www.chess.com"]
[Date "2023.12.19"]
[Round "7"]
[White "Boruchovsky, Avital"]
[Black "Fernandez Diaz, Cristian"]
[Result "0-1"]
[Board "23"]
[TimeControl "180+1"]
[WhiteFideId "2800055"]
[BlackFideId "22256687"]
[WhiteElo "2450"]
[BlackElo "2170"]
[WhiteTeam "ISR"]
[BlackTeam "ESP"]
[WhiteClock "0:00:20"]
[BlackClock "0:01:06"]

1. Nf3 {[%clk 0:03:00]}  Nf6 {[%clk 0:02:53]} 2. g3 {[%clk 0:02:58]}  g6 {[%clk 0:02:52]} 3. Bg2 {[%clk 0:02:59]}  Bg7 {[%clk 0:02:52]} 4. O-O {[%clk 0:02:59]}  O-O {[%clk 0:02:52]} 5. d3 {[%clk 0:03:00]}  c5 {[%clk 0:02:45]} 6. a3 {[%clk 0:02:56]}  Nc6 {[%clk 0:02:41]} 7. Nc3 {[%clk 0:02:51]}  d5 {[%clk 0:02:37]} 8. Rb1 {[%clk 0:02:51]}  e5 {[%clk 0:02:32]} 9. b4 {[%clk 0:02:49]}  d4 {[%clk 0:02:25]} 10. Na4 {[%clk 0:02:45]}  cxb4 {[%clk 0:02:12]} 11. axb4 {[%clk 0:02:46]}  b5 {[%clk 0:01:56]} 12. Nc5 {[%clk 0:02:41]}  Nd5 {[%clk 0:01:56]} 13. Bd2 {[%clk 0:02:36]}  a5 {[%clk 0:01:55]} 14. bxa5 {[%clk 0:02:32]}  b4 {[%clk 0:01:55]} 15. e4 {[%clk 0:02:05]}  Nc3 {[%clk 0:01:51]} 16. Bxc3 {[%clk 0:02:04]}  dxc3 {[%clk 0:01:51]} 17. Nb3 {[%clk 0:01:40]}  Be6 {[%clk 0:01:50]} 18. Nc5 {[%clk 0:01:35]}  Bc8 {[%clk 0:01:50]} 19. Nb3 {[%clk 0:01:35]}  Be6 {[%clk 0:01:49]} 20. d4 {[%clk 0:01:10]}  exd4 {[%clk 0:01:41]} 21. Ne1 {[%clk 0:01:07]}  Nxa5 {[%clk 0:01:32]} 22. Nc5 {[%clk 0:01:01]}  Bc4 {[%clk 0:01:30]} 23. Ned3 {[%clk 0:01:01]}  b3 {[%clk 0:01:18]} 24. cxb3 {[%clk 0:00:57]}  Bxd3 {[%clk 0:01:18]} 25. Qxd3 {[%clk 0:00:54]}  Nc6 {[%clk 0:01:18]} 26. b4 {[%clk 0:00:52]}  Ne5 {[%clk 0:01:15]} 27. Qb5 {[%clk 0:00:43]}  d3 {[%clk 0:01:10]} 28. f4 {[%clk 0:00:41]}  c2 {[%clk 0:01:07]} 29. fxe5 {[%clk 0:00:34]}  cxb1=Q {[%clk 0:01:07]} 30. Rxb1 {[%clk 0:00:34]}  Qd4+ {[%clk 0:01:07]} 31. Kh1 {[%clk 0:00:34]}  d2 {[%clk 0:01:07]} 32. Qe2 {[%clk 0:00:27]}  Ra1 {[%clk 0:01:08]} 33. Rd1 {[%clk 0:00:24]}  Rxd1+ {[%clk 0:01:07]} 34. Qxd1 {[%clk 0:00:25]}  Ra8 {[%clk 0:01:07]} 35. Nb3 {[%clk 0:00:25]}  Qxb4 {[%clk 0:01:06]} 36. Nxd2 {[%clk 0:00:20]}  Rd8 {[%clk 0:01:06]} 0-1

[Event "December 19 Late 2023"]
[Site "https://www.chess.com"]
[Date "2023.12.19"]
[Round "7"]
[White "Liascovich, Lucas"]
[Black "Manolache, Marius"]
[Result "1/2-1/2"]
[Board "25"]
[TimeControl "180+1"]
[WhiteFideId "108634"]
[BlackFideId "1201530"]
[WhiteElo "2455"]
[BlackElo "2364"]
[WhiteTeam "ARG"]
[BlackTeam "ROU"]
[WhiteClock "0:01:17"]
[BlackClock "0:00:36"]

1. e4 {[%clk 0:02:45]}  c5 {[%clk 0:02:59]} 2. Nc3 {[%clk 0:02:44]}  a6 {[%clk 0:02:58]} 3. d4 {[%clk 0:02:44]}  cxd4 {[%clk 0:02:58]} 4. Qxd4 {[%clk 0:02:45]}  Nc6 {[%clk 0:02:58]} 5. Qe3 {[%clk 0:02:45]}  d6 {[%clk 0:02:57]} 6. Bd2 {[%clk 0:02:45]}  g6 {[%clk 0:02:56]} 7. O-O-O {[%clk 0:02:45]}  Bg7 {[%clk 0:02:56]} 8. f4 {[%clk 0:02:44]}  Nf6 {[%clk 0:02:55]} 9. Nd5 {[%clk 0:02:39]}  O-O {[%clk 0:02:42]} 10. Bc4 {[%clk 0:02:39]}  Bd7 {[%clk 0:02:40]} 11. Nf3 {[%clk 0:02:38]}  Rc8 {[%clk 0:02:39]} 12. Kb1 {[%clk 0:02:32]}  b5 {[%clk 0:02:35]} 13. Bb3 {[%clk 0:02:30]}  Nxd5 {[%clk 0:02:33]} 14. exd5 {[%clk 0:02:28]}  Na5 {[%clk 0:02:28]} 15. Bxa5 {[%clk 0:02:25]}  Qxa5 {[%clk 0:02:27]} 16. Qxe7 {[%clk 0:02:23]}  Qc7 {[%clk 0:02:27]} 17. Nd4 {[%clk 0:02:15]}  Rfe8 {[%clk 0:02:23]} 18. Qh4 {[%clk 0:02:14]}  Bxd4 {[%clk 0:02:13]} 19. Rxd4 {[%clk 0:02:10]}  Re2 {[%clk 0:02:13]} 20. Rc1 {[%clk 0:02:08]}  Bf5 {[%clk 0:02:07]} 21. g4 {[%clk 0:02:05]}  Bxc2+ {[%clk 0:02:07]} 22. Ka1 {[%clk 0:02:05]}  Rg2 {[%clk 0:01:14]} 23. Qe1 {[%clk 0:01:53]}  Qd8 {[%clk 0:01:03]} 24. Rd2 {[%clk 0:01:50]}  Rxd2 {[%clk 0:01:00]} 25. Qxd2 {[%clk 0:01:51]}  Bxb3 {[%clk 0:01:00]} 26. axb3 {[%clk 0:01:52]}  Rxc1+ {[%clk 0:00:53]} 27. Qxc1 {[%clk 0:01:53]}  b4 {[%clk 0:00:53]} 28. Qc6 {[%clk 0:01:49]}  Qf6 {[%clk 0:00:52]} 29. Qc4 {[%clk 0:01:43]}  a5 {[%clk 0:00:48]} 30. Ka2 {[%clk 0:01:43]}  h6 {[%clk 0:00:47]} 31. h3 {[%clk 0:01:42]}  g5 {[%clk 0:00:47]} 32. fxg5 {[%clk 0:01:40]}  hxg5 {[%clk 0:00:48]} 33. Qc8+ {[%clk 0:01:40]}  Kg7 {[%clk 0:00:48]} 34. Qc7 {[%clk 0:01:41]}  Qf4 {[%clk 0:00:44]} 35. Qxa5 {[%clk 0:01:37]}  Qd4 {[%clk 0:00:42]} 36. Qb5 {[%clk 0:01:33]}  Qa7+ {[%clk 0:00:41]} 37. Kb1 {[%clk 0:01:33]}  Qg1+ {[%clk 0:00:41]} 38. Ka2 {[%clk 0:01:34]}  Qa7+ {[%clk 0:00:40]} 39. Qa4 {[%clk 0:01:35]}  Qd4 {[%clk 0:00:40]} 40. Qa8 {[%clk 0:01:32]}  Qc5 {[%clk 0:00:38]} 41. Qd8 {[%clk 0:01:19]}  Qa7+ {[%clk 0:00:37]} 42. Kb1 {[%clk 0:01:15]}  Qg1+ {[%clk 0:00:36]} 43. Ka2 {[%clk 0:01:15]}  Qa7+ {[%clk 0:00:36]} 44. Kb1 {[%clk 0:01:16]}  Qg1+ {[%clk 0:00:36]} 45. Ka2 {[%clk 0:01:17]}  Qa7+ {[%clk 0:00:36]} 1/2-1/2

[Event "December 19 Late 2023"]
[Site "https://www.chess.com"]
[Date "2023.12.19"]
[Round "7"]
[White "Sanal, Vahap"]
[Black "Zavgorodniy, Sergiy"]
[Result "1-0"]
[Board "26"]
[TimeControl "180+1"]
[WhiteFideId "6300545"]
[BlackFideId "14110148"]
[WhiteElo "2637"]
[BlackElo "2402"]
[WhiteTeam "TUR"]
[BlackTeam "UKR"]
[WhiteClock "0:00:23"]
[BlackClock "0:00:00"]

1. Nf3 {[%clk 0:03:00]}  d5 {[%clk 0:02:59]} 2. g3 {[%clk 0:03:01]}  Nf6 {[%clk 0:02:59]} 3. Bg2 {[%clk 0:03:01]}  e6 {[%clk 0:02:59]} 4. O-O {[%clk 0:03:02]}  Be7 {[%clk 0:02:59]} 5. c4 {[%clk 0:02:58]}  O-O {[%clk 0:02:58]} 6. b3 {[%clk 0:02:58]}  b6 {[%clk 0:02:58]} 7. Bb2 {[%clk 0:02:59]}  Bb7 {[%clk 0:02:58]} 8. e3 {[%clk 0:02:58]}  Nbd7 {[%clk 0:02:58]} 9. Nc3 {[%clk 0:02:58]}  c5 {[%clk 0:02:54]} 10. cxd5 {[%clk 0:02:58]}  Nxd5 {[%clk 0:02:54]} 11. Nxd5 {[%clk 0:02:35]}  Bxd5 {[%clk 0:02:54]} 12. d3 {[%clk 0:02:35]}  Bf6 {[%clk 0:02:51]} 13. Qc2 {[%clk 0:02:32]}  Bxb2 {[%clk 0:02:48]} 14. Qxb2 {[%clk 0:02:32]}  Qf6 {[%clk 0:02:45]} 15. Qxf6 {[%clk 0:02:28]}  Nxf6 {[%clk 0:02:46]} 16. d4 {[%clk 0:02:23]}  Rac8 {[%clk 0:02:39]} 17. dxc5 {[%clk 0:02:17]}  Rxc5 {[%clk 0:02:40]} 18. Nd4 {[%clk 0:02:15]}  Rfc8 {[%clk 0:02:33]} 19. Rfd1 {[%clk 0:02:08]}  Kf8 {[%clk 0:02:28]} 20. b4 {[%clk 0:02:01]}  Rc4 {[%clk 0:02:21]} 21. a3 {[%clk 0:02:02]}  Bxg2 {[%clk 0:02:14]} 22. Kxg2 {[%clk 0:02:02]}  a6 {[%clk 0:02:12]} 23. Ra2 {[%clk 0:01:51]}  Rc3 {[%clk 0:02:04]} 24. b5 {[%clk 0:01:48]}  axb5 {[%clk 0:02:00]} 25. Nxb5 {[%clk 0:01:48]}  Rc2 {[%clk 0:01:49]} 26. Rd2 {[%clk 0:01:40]}  Rxa2 {[%clk 0:01:46]} 27. Rxa2 {[%clk 0:01:40]}  Ke7 {[%clk 0:01:45]} 28. Rb2 {[%clk 0:01:40]}  Nd7 {[%clk 0:01:40]} 29. g4 {[%clk 0:01:31]}  h6 {[%clk 0:01:39]} 30. h4 {[%clk 0:01:31]}  Rc4 {[%clk 0:01:38]} 31. Kg3 {[%clk 0:01:30]}  Ne5 {[%clk 0:01:34]} 32. Nd4 {[%clk 0:01:30]}  Nd7 {[%clk 0:01:32]} 33. Rb3 {[%clk 0:01:31]}  Ra4 {[%clk 0:01:29]} 34. Nc6+ {[%clk 0:01:28]}  Kd6 {[%clk 0:01:25]} 35. Nd4 {[%clk 0:01:28]}  Ke7 {[%clk 0:01:24]} 36. g5 {[%clk 0:01:27]}  hxg5 {[%clk 0:01:24]} 37. hxg5 {[%clk 0:01:28]}  g6 {[%clk 0:01:23]} 38. Rd3 {[%clk 0:01:18]}  Rc4 {[%clk 0:01:05]} 39. f4 {[%clk 0:01:13]}  e5 {[%clk 0:00:59]} 40. Nf3 {[%clk 0:01:12]}  exf4+ {[%clk 0:00:52]} 41. exf4 {[%clk 0:01:13]}  Re4 {[%clk 0:00:44]} 42. Nd4 {[%clk 0:01:09]}  Nc5 {[%clk 0:00:39]} 43. Nc6+ {[%clk 0:01:08]}  Ke6 {[%clk 0:00:38]} 44. Nd8+ {[%clk 0:01:01]}  Ke7 {[%clk 0:00:37]} 45. Nc6+ {[%clk 0:01:02]}  Ke6 {[%clk 0:00:38]} 46. Rd8 {[%clk 0:00:55]}  Re3+ {[%clk 0:00:33]} 47. Kg4 {[%clk 0:00:55]}  Rxa3 {[%clk 0:00:33]} 48. Nd4+ {[%clk 0:00:55]}  Ke7 {[%clk 0:00:31]} 49. Nc6+ {[%clk 0:00:56]}  Ke6 {[%clk 0:00:32]} 50. Ne5 {[%clk 0:00:56]}  Ke7 {[%clk 0:00:32]} 51. Rc8 {[%clk 0:00:54]}  Ne6 {[%clk 0:00:27]} 52. Rb8 {[%clk 0:00:54]}  Nd8 {[%clk 0:00:17]} 53. Rxb6 {[%clk 0:00:53]}  Ra7 {[%clk 0:00:15]} 54. Rb8 {[%clk 0:00:52]}  Rc7 {[%clk 0:00:14]} 55. Rb1 {[%clk 0:00:53]}  Ne6 {[%clk 0:00:14]} 56. Rh1 {[%clk 0:00:52]}  Rb7 {[%clk 0:00:13]} 57. Rh7 {[%clk 0:00:51]}  Nd8 {[%clk 0:00:03]} 58. Nxg6+ {[%clk 0:00:51]}  Ke6 {[%clk 0:00:03]} 59. f5+ {[%clk 0:00:51]}  Kd5 {[%clk 0:00:03]} 60. Nf4+ {[%clk 0:00:50]}  Ke5 {[%clk 0:00:02]} 61. Rh8 {[%clk 0:00:51]}  Nc6 {[%clk 0:00:02]} 62. Re8+ {[%clk 0:00:51]}  Kd4 {[%clk 0:00:01]} 63. g6 {[%clk 0:00:47]}  Ne5+ {[%clk 0:00:02]} 64. Kg5 {[%clk 0:00:41]}  fxg6 {[%clk 0:00:03]} 65. Nxg6 {[%clk 0:00:29]}  Nf7+ {[%clk 0:00:03]} 66. Kf6 {[%clk 0:00:29]}  Nh6 {[%clk 0:00:03]} 67. Rd8+ {[%clk 0:00:28]}  Kc4 {[%clk 0:00:03]} 68. Ne5+ {[%clk 0:00:28]}  Kc5 {[%clk 0:00:02]} 69. Nd3+ {[%clk 0:00:25]}  Kc4 {[%clk 0:00:02]} 70. Ne5+ {[%clk 0:00:23]}  Kc5 {[%clk 0:00:03]} 71. Rd1 {[%clk 0:00:22]}  Nxf5 {[%clk 0:00:03]} 72. Kxf5 {[%clk 0:00:23]}  Rb2 {[%clk 0:00:00]} 73. Nd3+ {[%clk 0:00:23]} 1-0

[Event "December 19 Late 2023"]
[Site "https://www.chess.com"]
[Date "2023.12.19"]
[Round "7"]
[White "Grigoriants, Sergey"]
[Black "Karttunen, Mika"]
[Result "1-0"]
[Board "27"]
[TimeControl "180+1"]
[WhiteFideId "4130804"]
[BlackFideId "502081"]
[WhiteElo "2532"]
[BlackElo "2396"]
[WhiteTeam "HUN"]
[BlackTeam "FIN"]
[WhiteClock "0:00:42"]
[BlackClock "0:00:09"]

1. d4 {[%clk 0:02:53]}  Nf6 {[%clk 0:02:59]} 2. c4 {[%clk 0:02:51]}  e6 {[%clk 0:02:58]} 3. Nc3 {[%clk 0:02:50]}  d5 {[%clk 0:02:56]} 4. cxd5 {[%clk 0:02:49]}  exd5 {[%clk 0:02:56]} 5. Bg5 {[%clk 0:02:49]}  Bb4 {[%clk 0:02:55]} 6. e3 {[%clk 0:02:46]}  h6 {[%clk 0:02:54]} 7. Bh4 {[%clk 0:02:46]}  g5 {[%clk 0:02:50]} 8. Bg3 {[%clk 0:02:46]}  Ne4 {[%clk 0:02:46]} 9. Ne2 {[%clk 0:02:44]}  h5 {[%clk 0:02:41]} 10. h4 {[%clk 0:02:44]}  Nxg3 {[%clk 0:02:38]} 11. Nxg3 {[%clk 0:02:45]}  gxh4 {[%clk 0:02:38]} 12. Nxh5 {[%clk 0:02:45]}  c6 {[%clk 0:02:38]} 13. Bd3 {[%clk 0:02:36]}  Qg5 {[%clk 0:02:21]} 14. Nf4 {[%clk 0:02:34]}  Bxc3+ {[%clk 0:02:04]} 15. bxc3 {[%clk 0:02:33]}  Nd7 {[%clk 0:02:00]} 16. c4 {[%clk 0:02:27]}  Nf6 {[%clk 0:01:57]} 17. Qb3 {[%clk 0:02:22]}  Nh5 {[%clk 0:01:49]} 18. Ne2 {[%clk 0:02:02]}  Nf6 {[%clk 0:01:35]} 19. cxd5 {[%clk 0:01:59]}  cxd5 {[%clk 0:01:31]} 20. Nf4 {[%clk 0:01:54]}  Kf8 {[%clk 0:01:23]} 21. Rc1 {[%clk 0:01:51]}  b6 {[%clk 0:01:06]} 22. Rc7 {[%clk 0:01:48]}  Bf5 {[%clk 0:00:49]} 23. Qa3+ {[%clk 0:01:30]}  Kg8 {[%clk 0:00:47]} 24. Qe7 {[%clk 0:01:25]}  Rh7 {[%clk 0:00:41]} 25. Qe5 {[%clk 0:01:23]}  Ne4 {[%clk 0:00:18]} 26. Nxd5 {[%clk 0:00:52]}  Qxg2 {[%clk 0:00:14]} 27. Bxe4 {[%clk 0:00:47]}  Bxe4 {[%clk 0:00:09]} 28. Nf6+ {[%clk 0:00:42]} 1-0